Workbook

Sheet Sheet1
B1: l'Hopital's Rule: ∞/∞ as x → a
B3: This DIGMath spreadsheet provides a
B4: graphical representation of l'Hopital's Rule for
B5: finding the limit of the indeterminate form ¥/¥
C6: lim x → a f(x) / g(x)
B7: where lim x → a f(x) = lim x → a g(x) = ¥
A11: Enter the numerator function: f(x) = | E11: log(x^2)
C12: =IF(ABS(Sheet2!D2)<10^5,"That may not become infinite at the point a","") -> That may not become infinite at the point a
A13: Enter the denominator function: g(x) = | E13: 1/abs(x)
C14: =IF(ABS(Sheet2!E2)<10^5,"That may not become infinite at the point a","") -> 
A16: What is the limit point a = | D16: 0
B17: =IF(OR(ABS(Sheet2!D2)<10^5,ABS(Sheet2!E2)<10^5),"Both functions have to become infinite at this point!!","") -> Both functions have to become infinite at this point!!
I18: The graphs of the ratios f(x) / g(x) and f '(x) / g'(x)
A19: Now enter the interval for x :
B20: Starting value xMin = | D20: -0.5 | I20: Now trace along the curves:
B21: Ending value xMax = | D21: 0.5 | I21: x = | J21: =D20+K21*dx -> 0.147 | K21: 324
I22: f / g = | J22: =LOOKUP(J$21,Sheet2!C3:C504,Sheet2!F3:F504) -> -0.245
I23: f '/g ' = | J23: =LOOKUP(J$21,Sheet2!C4:C505,Sheet2!I4:I505) -> -0.128
A25: Click each item below for suggestions and investigations
B26: Item 1
B27: Item 2
B28: Item 3
B29: Item 4
A33: To access/download all the DIGMath Apps for Calculus
A34: Click this link: | C34: DIGMath for Calculus
A36: Created by: Sheldon P. Gordon
A37: Farmingdale State College
A38: Development of this module was supported by the
A39: NSF's Division of Undergraduate Education
A40: under grants DUE-0310123 and DUE-0442160.

Sheet Sheet2
C1: x | D1: y = f(x) | E1: y = g(x) | F1: f(x)/g(x) | G1: f' | H1: g' | I1: f'/g/ | J1: Tracing points
C2: =a0+0.0000001 -> 1e-07 | D2: =LOG(x^2) -> -14 | E2: =1/ABS(x) -> 10000000
C3: =a -> -0.5 | D3: -0.6020599913 | E3: 2 | F3: =D3/E3 -> -0.3010299957 | G3: =(D4-D3)/dx -> -1.740654604 | H3: =(E4-E3)/dx -> 4.016032064 | I3: =G3/H3 -> -0.4334264708 | J3: 0 | K3: 0
C4: =C3+dx -> -0.498003992 | D4: -0.6055343518 | E4: 2.008016032 | F4: =D4/E4 -> -0.3015585245 | G4: -1.747645204 | H4: 4.048354254 | I4: =G4/H4 -> -0.4316927557 | J4: =Sheet1!J$21 -> 0.1467065868 | K4: =Sheet1!J22 -> -0.2445746644
C5: -0.496007984 | D5: -0.6090226656 | E5: 2.016096579 | F5: -0.3020801046 | G5: -1.754692179 | H5: 4.081068228 | I5: -0.4299590405 | J5: on curve
C6: -0.494011976 | D6: -0.6125250452 | E6: 2.024242424 | F6: -0.302594708 | G6: -1.761796216 | H6: 4.114180343 | I6: -0.4282253253
C7: -0.4920159681 | D7: -0.6160416045 | E7: 2.032454361 | F7: -0.3031023064 | G7: -1.768958009 | H7: 4.147697087 | I7: -0.42649161 | J7: 0 | K7: 0
C8: -0.4900199601 | D8: -0.6195724588 | E8: 2.040733198 | F8: -0.3036028715 | G8: -1.776178265 | H8: 4.18162508 | I8: -0.4247578947 | J8: =Sheet1!J$21 -> 0.1467065868 | K8: =Sheet1!J23 -> -0.1282906727
C9: -0.4880239521 | D9: -0.6231177248 | E9: 2.049079755 | F9: -0.3040963747 | G9: -1.783457705 | H9: 4.215971076 | I9: -0.4230241794 | J9: on derivatives
C10: -0.4860279441 | D10: -0.6266775206 | E10: 2.057494867 | F10: -0.304582787 | G10: -1.790797058 | H10: 4.250741972 | I10: -0.421290464
C11: -0.4840319361 | D11: -0.6302519659 | E11: 2.065979381 | F11: -0.3050620793 | G11: -1.798197066 | H11: 4.285944804 | I11: -0.4195567486
A12: delta x = | B12: =(Sheet1!D21-Sheet1!D20)/501 -> 0.001996007984 | C12: -0.4820359281 | D12: -0.6338411816 | E12: 2.074534161 | F12: -0.3055342222 | G12: -1.805658486 | H12: 4.321586756 | I12: -0.4178230331
C13: -0.4800399202 | D13: -0.6374452903 | E13: 2.083160083 | F13: -0.3059991863 | G13: -1.813182085 | H13: 4.357675164 | I13: -0.4160893176
C14: -0.4780439122 | D14: -0.6410644162 | E14: 2.091858038 | F14: -0.3064569415 | G14: -1.820768643 | H14: 4.394217513 | I14: -0.4143556021
C15: -0.4760479042 | D15: -0.644698685 | E15: 2.100628931 | F15: -0.3069074578 | G15: -1.828418954 | H15: 4.43122145 | I15: -0.4126218865
C16: -0.4740518962 | D16: -0.6483482238 | E16: 2.109473684 | F16: -0.3073507049 | G16: -1.836133825 | H16: 4.468694781 | I16: -0.4108881709
C17: -0.4720558882 | D17: -0.6520131616 | E17: 2.118393235 | F17: -0.3077866521 | G17: -1.843914076 | H17: 4.50664548 | I17: -0.4091544552
C18: -0.4700598802 | D18: -0.6556936288 | E18: 2.127388535 | F18: -0.3082152686 | G18: -1.851760543 | H18: 4.545081689 | I18: -0.4074207395
C19: -0.4680638723 | D19: -0.6593897576 | E19: 2.136460554 | F19: -0.3086365233 | G19: -1.859674073 | H19: 4.584011725 | I19: -0.4056870237
C20: -0.4660678643 | D20: -0.6631016819 | E20: 2.145610278 | F20: -0.3090503847 | G20: -1.867655532 | H20: 4.623444084 | I20: -0.4039533079
C21: -0.4640718563 | D21: -0.6668295373 | E21: 2.15483871 | F21: -0.3094568212 | G21: -1.875705796 | H21: 4.663387445 | I21: -0.402219592
C22: -0.4620758483 | D22: -0.670573461 | E22: 2.164146868 | F22: -0.3098558009 | G22: -1.88382576 | H22: 4.703850677 | I22: -0.4004858761
C23: -0.4600798403 | D23: -0.6743335923 | E23: 2.173535792 | F23: -0.3102472915 | G23: -1.892016332 | H23: 4.74484284 | I23: -0.3987521602
C24: -0.4580838323 | D24: -0.678110072 | E24: 2.183006536 | F24: -0.3106312605 | G24: -1.900278438 | H24: 4.786373193 | I24: -0.3970184442
C25: -0.4560878244 | D25: -0.6819030429 | E25: 2.192560175 | F25: -0.3110076753 | G25: -1.90861302 | H25: 4.828451199 | I25: -0.3952847282
C26: -0.4540918164 | D26: -0.6857126497 | E26: 2.202197802 | F26: -0.3113765026 | G26: -1.917021034 | H26: 4.871086529 | I26: -0.3935510121
C27: -0.4520958084 | D27: -0.689539039 | E27: 2.21192053 | F27: -0.3117377093 | G27: -1.925503455 | H27: 4.914289071 | I27: -0.3918172959
C28: -0.4500998004 | D28: -0.6933823593 | E28: 2.22172949 | F28: -0.3120912615 | G28: -1.934061276 | H28: 4.958068929 | I28: -0.3900835798
C29: -0.4481037924 | D29: -0.6972427611 | E29: 2.231625835 | F29: -0.3124371255 | G29: -1.942695507 | H29: 5.002436436 | I29: -0.3883498635
C30: -0.4461077844 | D30: -0.7011203968 | E30: 2.241610738 | F30: -0.3127752668 | G30: -1.951407175 | H30: 5.047402157 | I30: -0.3866161472
C31: -0.4441117764 | D31: -0.7050154211 | E31: 2.251685393 | F31: -0.3131056511 | G31: -1.960197327 | H31: 5.092976894 | I31: -0.3848824309
C32: -0.4421157685 | D32: -0.7089279906 | E32: 2.261851016 | F32: -0.3134282434 | G32: -1.969067029 | H32: 5.139171696 | I32: -0.3831487145
C33: -0.4401197605 | D33: -0.7128582641 | E33: 2.272108844 | F33: -0.3137430085 | G33: -1.978017364 | H33: 5.185997862 | I33: -0.381414998
C34: -0.4381237525 | D34: -0.7168064026 | E34: 2.282460137 | F34: -0.3140499109 | G34: -1.987049438 | H34: 5.23346695 | I34: -0.3796812815
C35: -0.4361277445 | D35: -0.7207725691 | E35: 2.292906178 | F35: -0.3143489149 | G35: -1.996164376 | H35: 5.281590784 | I35: -0.377947565
C36: -0.4341317365 | D36: -0.7247569292 | E36: 2.303448276 | F36: -0.3146399842 | G36: -2.005363322 | H36: 5.330381461 | I36: -0.3762138484
C37: -0.4321357285 | D37: -0.7287596504 | E37: 2.31408776 | F37: -0.3149230824 | G37: -2.014647445 | H37: 5.379851358 | I37: -0.3744801317
C38: -0.4301397206 | D38: -0.7327809027 | E38: 2.324825986 | F38: -0.3151981727 | G38: -2.024017932 | H38: 5.430013142 | I38: -0.372746415
C39: -0.4281437126 | D39: -0.7368208587 | E39: 2.335664336 | F39: -0.3154652179 | G39: -2.033475994 | H39: 5.480879776 | I39: -0.3710126982
C40: -0.4261477046 | D40: -0.740879693 | E40: 2.346604215 | F40: -0.3157241806 | G40: -2.043022865 | H40: 5.532464527 | I40: -0.3692789813
C41: -0.4241516966 | D41: -0.744957583 | E41: 2.357647059 | F41: -0.3159750227 | G41: -2.052659801 | H41: 5.584780976 | I41: -0.3675452644
C42: -0.4221556886 | D42: -0.7490547083 | E42: 2.368794326 | F42: -0.3162177062 | G42: -2.062388082 | H42: 5.637843028 | I42: -0.3658115475
C43: -0.4201596806 | D43: -0.7531712514 | E43: 2.380047506 | F43: -0.3164521925 | G43: -2.072209015 | H43: 5.691664919 | I43: -0.3640778304
C44: -0.4181636727 | D44: -0.7573073971 | E44: 2.391408115 | F44: -0.3166784425 | G44: -2.082123929 | H44: 5.746261225 | I44: -0.3623441133
C45: -0.4161676647 | D45: -0.7614633331 | E45: 2.402877698 | F45: -0.3168964171 | G45: -2.092134178 | H45: 5.801646875 | I45: -0.3606103962
C46: -0.4141716567 | D46: -0.7656392496 | E46: 2.414457831 | F46: -0.3171060764 | G46: -2.102241146 | H46: 5.85783716 | I46: -0.358876679
C47: -0.4121756487 | D47: -0.7698353397 | E47: 2.426150121 | F47: -0.3173073806 | G47: -2.11244624 | H47: 5.91484774 | I47: -0.3571429617
C48: -0.4101796407 | D48: -0.7740517993 | E48: 2.437956204 | F48: -0.3175002889 | G48: -2.122750896 | H48: 5.972694662 | I48: -0.3554092443
C49: -0.4081836327 | D49: -0.778288827 | E49: 2.449877751 | F49: -0.3176847607 | G49: -2.13315658 | H49: 6.031394364 | I49: -0.3536755269
C50: -0.4061876248 | D50: -0.7825466246 | E50: 2.461916462 | F50: -0.3178607547 | G50: -2.143664783 | H50: 6.090963691 | I50: -0.3519418094
C51: -0.4041916168 | D51: -0.7868253966 | E51: 2.474074074 | F51: -0.3180282292 | G51: -2.154277028 | H51: 6.151419906 | I51: -0.3502080919
C52: -0.4021956088 | D52: -0.7911253508 | E52: 2.486352357 | F52: -0.3181871421 | G52: -2.164994868 | H52: 6.212780703 | I52: -0.3484743743
C53: -0.4001996008 | D53: -0.7954466978 | E53: 2.498753117 | F53: -0.3183374509 | G53: -2.175819887 | H53: 6.275064219 | I53: -0.3467406566
C54: -0.3982035928 | D54: -0.7997896517 | E54: 2.511278195 | F54: -0.3184791128 | G54: -2.186753701 | H54: 6.338289048 | I54: -0.3450069388
C55: -0.3962075848 | D55: -0.8041544295 | E55: 2.523929471 | F55: -0.3186120844 | G55: -2.197797959 | H55: 6.402474253 | I55: -0.343273221
C56: -0.3942115768 | D56: -0.8085412518 | E56: 2.536708861 | F56: -0.3187363218 | G56: -2.208954342 | H56: 6.467639385 | I56: -0.341539503
C57: -0.3922155689 | D57: -0.8129503423 | E57: 2.549618321 | F57: -0.318851781 | G57: -2.220224566 | H57: 6.533804494 | I57: -0.339805785
C58: -0.3902195609 | D58: -0.8173819283 | E58: 2.562659847 | F58: -0.3189584171 | G58: -2.231610382 | H58: 6.600990145 | I58: -0.338072067
C59: -0.3882235529 | D59: -0.8218362404 | E59: 2.575835476 | F59: -0.3190561851 | G59: -2.243113579 | H59: 6.669217433 | I59: -0.3363383488
C60: -0.3862275449 | D60: -0.826313513 | E60: 2.589147287 | F60: -0.3191450395 | G60: -2.254735981 | H60: 6.738508004 | I60: -0.3346046306
C61: -0.3842315369 | D61: -0.830813984 | E61: 2.602597403 | F61: -0.319224934 | G61: -2.266479451 | H61: 6.808884066 | I61: -0.3328709123
C62: -0.3822355289 | D62: -0.8353378951 | E62: 2.61618799 | F62: -0.3192958222 | G62: -2.27834589 | H62: 6.880368413 | I62: -0.3311371939
C63: -0.380239521 | D63: -0.8398854917 | E63: 2.62992126 | F63: -0.319357657 | G63: -2.290337239 | H63: 6.952984439 | I63: -0.3294034755
C64: -0.378243513 | D64: -0.8444570231 | E64: 2.643799472 | F64: -0.319410391 | G64: -2.302455482 | H64: 7.026756157 | I64: -0.3276697569
C65: -0.376247505 | D65: -0.8490527427 | E65: 2.657824934 | F65: -0.319453976 | G65: -2.314702643 | H65: 7.101708223 | I65: -0.3259360383
C66: -0.374251497 | D66: =LOG(x^2) -> -0.8536729076 | E66: =1/ABS(x) -> 2.672 | F66: -0.3194883636 | G66: -2.327080791 | H66: 7.177865952 | I66: -0.3242023195
C67: -0.372255489 | D67: -0.8583177794 | E67: 2.686327078 | F67: -0.3195135047 | G67: =(D68-D67)/dx -> -2.339592038 | H67: =(E68-E67)/dx -> 7.255255342 | I67: -0.3224686007
C68: =C67+dx -> -0.370259481 | D68: -0.8629876238 | E68: 2.700808625 | F68: =D68/E68 -> -0.3195293497 | G68: -2.352238543 | H68: 7.333903096 | I68: =G68/H68 -> -0.3207348818
C69: -0.3682634731 | D69: -0.8676827107 | E69: 2.715447154 | F69: -0.3195358486 | G69: -2.365022511 | H69: 7.413836645 | I69: -0.3190011628
C70: -0.3662674651 | D70: -0.8724033146 | E70: 2.730245232 | F70: -0.3195329505 | G70: -2.377946195 | H70: 7.49508417 | I70: -0.3172674437
C71: -0.3642714571 | D71: -0.8771497141 | E71: 2.745205479 | F71: -0.3195206045 | G71: -2.391011899 | H71: 7.577674629 | I71: -0.3155337246
C72: -0.3622754491 | D72: -0.881922193 | E72: 2.760330579 | F72: -0.3194987585 | G72: -2.404221977 | H72: 7.661637783 | I72: -0.3138000053
C73: -0.3602794411 | D73: -0.8867210393 | E73: 2.775623269 | F73: -0.3194673604 | G73: -2.417578834 | H73: 7.747004221 | I73: -0.3120662859
C74: -0.3582834331 | D74: -0.8915465459 | E74: 2.791086351 | F74: -0.3194263573 | G74: -2.431084931 | H74: 7.833805388 | I74: -0.3103325664
C75: -0.3562874251 | D75: -0.8963990108 | E75: 2.806722689 | F75: -0.3193756955 | G75: -2.444742783 | H75: 7.922073618 | I75: -0.3085988468
C76: -0.3542914172 | D76: -0.901278737 | E76: 2.822535211 | F76: -0.319315321 | G76: -2.458554963 | H76: 8.011842158 | I76: -0.3068651272
C77: -0.3522954092 | D77: -0.9061860323 | E77: 2.838526912 | F77: -0.319245179 | G77: -2.4725241 | H77: 8.103145202 | I77: -0.3051314074
C78: -0.3502994012 | D78: -0.9111212101 | E78: 2.854700855 | F78: -0.3191652143 | G78: -2.486652886 | H78: 8.196017927 | I78: -0.3033976875
C79: -0.3483033932 | D79: -0.9160845891 | E79: 2.871060172 | F79: -0.3190753709 | G79: -2.500944073 | H79: 8.290496519 | I79: -0.3016639675
C80: -0.3463073852 | D80: -0.9210764935 | E80: 2.887608069 | F80: -0.3189755921 | G80: -2.515400477 | H80: 8.386618218 | I80: -0.2999302474
C81: -0.3443113772 | D81: -0.9260972529 | E81: 2.904347826 | F81: -0.3188658206 | G81: -2.530024981 | H81: 8.484421346 | I81: -0.2981965272
C82: -0.3423153693 | D82: -0.931147203 | E82: 2.921282799 | F82: -0.3187459986 | G82: -2.544820532 | H82: 8.58394535 | I82: -0.2964628068
C83: -0.3403193613 | D83: -0.9362266851 | E83: 2.938416422 | F83: -0.3186160675 | G83: -2.559790151 | H83: 8.685230841 | I83: -0.2947290864
C84: -0.3383233533 | D84: -0.9413360467 | E84: 2.955752212 | F84: -0.3184759679 | G84: -2.574936926 | H84: 8.788319634 | I84: -0.2929953658
C85: -0.3363273453 | D85: -0.9464756413 | E85: 2.973293769 | F85: -0.3183256398 | G85: -2.590264022 | H85: 8.893254794 | I85: -0.2912616452
C86: -0.3343313373 | D86: -0.951645829 | E86: 2.991044776 | F86: -0.3181650227 | G86: -2.605774678 | H86: 9.000080678 | I86: -0.2895279243
C87: -0.3323353293 | D87: -0.956846976 | E87: 3.009009009 | F87: -0.3179940549 | G87: -2.62147221 | H87: 9.108842982 | I87: -0.2877942034
C88: -0.3303393214 | D88: -0.9620794555 | E88: 3.027190332 | F88: -0.3178126744 | G88: -2.637360017 | H88: 9.219588793 | I88: -0.2860604824
C89: -0.3283433134 | D89: -0.9673436472 | E89: 3.045592705 | F89: -0.3176208183 | G89: -2.65344158 | H89: 9.332366638 | I89: -0.2843267612
C90: -0.3263473054 | D90: -0.9726399377 | E90: 3.064220183 | F90: -0.3174184228 | G90: -2.669720465 | H90: 9.447226535 | I90: -0.2825930399
C91: -0.3243512974 | D91: -0.9779687211 | E91: 3.083076923 | F91: -0.3172054235 | G91: -2.686200325 | H91: 9.564220052 | I91: -0.2808593184
C92: -0.3223552894 | D92: -0.9833303984 | E92: 3.102167183 | F92: -0.3169817552 | G92: -2.702884906 | H92: 9.683400365 | I92: -0.2791255968
C93: -0.3203592814 | D93: -0.9887253783 | E93: 3.121495327 | F93: -0.3167473517 | G93: -2.719778046 | H93: 9.804822313 | I93: -0.2773918751
C94: -0.3183632735 | D94: -0.9941540769 | E94: 3.141065831 | F94: -0.3165021463 | G94: -2.736883681 | H94: 9.928542468 | I94: -0.2756581532
C95: -0.3163672655 | D95: -0.9996169186 | E95: 3.160883281 | F95: -0.3162460711 | G95: -2.754205845 | H95: 10.0546192 | I95: -0.2739244312
C96: -0.3143712575 | D96: -1.005114335 | E96: 3.180952381 | F96: -0.3159790576 | G96: -2.771748676 | H96: 10.18311273 | I96: -0.2721907091
C97: -0.3123752495 | D97: -1.010646768 | E97: 3.201277955 | F97: -0.3157010363 | G97: -2.789516417 | H97: 10.31408524 | I97: -0.2704569868
C98: -0.3103792415 | D98: -1.016214665 | E98: 3.221864952 | F98: -0.3154119369 | G98: -2.807513421 | H98: 10.44760091 | I98: -0.2687232643
C99: -0.3083832335 | D99: -1.021818484 | E99: 3.242718447 | F99: -0.3151116882 | G99: -2.825744156 | H99: 10.583726 | I99: -0.2669895417
C100: -0.3063872255 | D100: -1.027458692 | E100: 3.263843648 | F100: -0.314800218 | G100: -2.844213203 | H100: 10.72252897 | I100: -0.2652558189
C101: -0.3043912176 | D101: -1.033135764 | E101: 3.285245902 | F101: -0.3144774532 | G101: -2.862925266 | H101: 10.86408051 | I101: -0.263522096
C102: -0.3023952096 | D102: -1.038850186 | E102: 3.306930693 | F102: -0.3141433197 | G102: -2.881885174 | H102: 11.00845367 | I102: -0.2617883729
C103: -0.3003992016 | D103: -1.044602452 | E103: 3.328903654 | F103: -0.3137977425 | G103: -2.901097884 | H103: 11.15572395 | I103: -0.2600546496
C104: -0.2984031936 | D104: -1.050393066 | E104: 3.351170569 | F104: -0.3134406456 | G104: -2.920568485 | H104: 11.30596939 | I104: -0.2583209262
C105: -0.2964071856 | D105: -1.056222544 | E105: 3.373737374 | F105: -0.3130719518 | G105: -2.940302206 | H105: 11.45927067 | I105: -0.2565872026
C106: -0.2944111776 | D106: -1.062091411 | E106: 3.396610169 | F106: -0.3126915831 | G106: -2.960304415 | H106: 11.61571123 | I106: -0.2548534788
C107: -0.2924151697 | D107: -1.068000202 | E107: 3.419795222 | F107: -0.3122994604 | G107: -2.980580631 | H107: 11.77537736 | I107: -0.2531197548
C108: -0.2904191617 | D108: -1.073949465 | E108: 3.443298969 | F108: -0.3118955033 | G108: -3.001136522 | H108: 11.93835836 | I108: -0.2513860307
C109: -0.2884231537 | D109: -1.079939758 | E109: 3.467128028 | F109: -0.3114796307 | G109: -3.021977915 | H109: 12.10474663 | I109: -0.2496523063
C110: -0.2864271457 | D110: -1.08597165 | E110: 3.491289199 | F110: -0.3110517599 | G110: -3.043110799 | H110: 12.27463781 | I110: -0.2479185818
C111: -0.2844311377 | D111: -1.092045723 | E111: 3.515789474 | F111: -0.3106118075 | G111: -3.064541333 | H111: 12.44813093 | I111: -0.2461848571
C112: -0.2824351297 | D112: -1.098162572 | E112: 3.540636042 | F112: -0.3101596885 | G112: -3.08627585 | H112: 12.62532852 | I112: -0.2444511321
C113: -0.2804391218 | D113: -1.104322803 | E113: 3.565836299 | F113: -0.3096953171 | G113: -3.108320865 | H113: 12.80633682 | I113: -0.242717407
C114: -0.2784431138 | D114: -1.110527037 | E114: 3.591397849 | F114: -0.309218606 | G114: -3.130683078 | H114: 12.99126587 | I114: -0.2409836816
C115: -0.2764471058 | D115: -1.116775905 | E115: 3.61732852 | F115: -0.3087294667 | G115: -3.153369385 | H115: 13.18022973 | I115: -0.2392499561
C116: -0.2744510978 | D116: -1.123070055 | E116: 3.643636364 | F116: -0.3082278096 | G116: -3.176386883 | H116: 13.37334665 | I116: -0.2375162303
C117: -0.2724550898 | D117: -1.129410149 | E117: 3.67032967 | F117: -0.3077135436 | G117: -3.199742879 | H117: 13.57073922 | I117: -0.2357825042
C118: -0.2704590818 | D118: -1.135796861 | E118: 3.697416974 | F118: -0.3071865763 | G118: -3.223444894 | H118: 13.7725346 | I118: -0.234048778
C119: -0.2684630739 | D119: -1.142230883 | E119: 3.724907063 | F119: -0.3066468139 | G119: -3.247500675 | H119: 13.97886471 | I119: -0.2323150515
C120: -0.2664670659 | D120: -1.14871292 | E120: 3.752808989 | F120: -0.3060941614 | G120: -3.271918203 | H120: 14.18986644 | I120: -0.2305813248
C121: -0.2644710579 | D121: -1.155243695 | E121: 3.781132075 | F121: -0.3055285222 | G121: -3.296705698 | H121: 14.4056819 | I121: -0.2288475978
C122: -0.2624750499 | D122: -1.161823946 | E122: 3.809885932 | F122: -0.3049497982 | G122: -3.321871634 | H122: 14.62645863 | I122: -0.2271138706
C123: -0.2604790419 | D123: -1.168454428 | E123: 3.83908046 | F123: -0.30435789 | G123: -3.347424744 | H123: 14.85234989 | I123: -0.2253801431
C124: -0.2584830339 | D124: -1.175135915 | E124: 3.868725869 | F124: -0.3037526966 | G124: -3.373374031 | H124: 15.08351487 | I124: -0.2236464154
C125: -0.2564870259 | D125: -1.181869196 | E125: 3.898832685 | F125: -0.3031341152 | G125: -3.399728783 | H125: 15.32011902 | I125: -0.2219126874
C126: -0.254491018 | D126: -1.188655082 | E126: 3.929411765 | F126: -0.3025020419 | G126: -3.426498577 | H126: 15.56233434 | I126: -0.2201789591
C127: -0.25249501 | D127: -1.195494401 | E127: 3.960474308 | F127: -0.3018563706 | G127: -3.453693294 | H127: 15.81033967 | I127: -0.2184452306
C128: -0.250499002 | D128: -1.202388 | E128: 3.992031873 | F128: -0.301196994 | G128: -3.481323134 | H128: 16.06432103 | I128: -0.2167115017
C129: -0.248502994 | D129: -1.209336749 | E129: 4.024096386 | F129: -0.3005238029 | G129: -3.509398624 | H129: 16.32447198 | I129: -0.2149777726
C130: -0.246506986 | D130: =LOG(x^2) -> -1.216341537 | E130: =1/ABS(x) -> 4.056680162 | F130: -0.2998366862 | G130: -3.537930633 | H130: 16.59099397 | I130: -0.2132440431
C131: -0.244510978 | D131: -1.223403274 | E131: 4.089795918 | F131: -0.2991355311 | G131: =(D132-D131)/dx -> -3.566930388 | H131: =(E132-E131)/dx -> 16.86409675 | I131: -0.2115103133
C132: =C131+dx -> -0.2425149701 | D132: -1.230522896 | E132: 4.12345679 | F132: =D132/E132 -> -0.2984202232 | G132: -3.596409485 | H132: 17.14399877 | I132: =G132/H132 -> -0.2097765833
C133: -0.2405189621 | D133: -1.237701358 | E133: 4.157676349 | F133: -0.297690646 | G133: -3.62637991 | H133: 17.43092762 | I133: -0.2080428529
C134: -0.2385229541 | D134: -1.244939641 | E134: 4.192468619 | F134: -0.2969466809 | G134: -3.656854048 | H134: 17.72512049 | I134: -0.2063091221
C135: -0.2365269461 | D135: -1.252238751 | E135: 4.227848101 | F135: -0.2961882076 | G135: -3.687844706 | H135: 18.02682467 | I135: -0.204575391
C136: -0.2345309381 | D136: -1.259599719 | E136: 4.263829787 | F136: -0.2954151036 | G136: -3.719365128 | H136: 18.33629805 | I136: -0.2028416596
C137: -0.2325349301 | D137: -1.267023601 | E137: 4.300429185 | F137: -0.2946272445 | G137: -3.751429016 | H137: 18.65380971 | I137: -0.2011079278
C138: -0.2305389222 | D138: -1.274511483 | E138: 4.337662338 | F138: -0.2938245036 | G138: -3.784050547 | H138: 18.97964045 | I138: -0.1993741956
C139: -0.2285429142 | D139: -1.282064478 | E139: 4.375545852 | F139: -0.293006752 | G139: -3.817244397 | H139: 19.31408345 | I139: -0.1976404631
C140: -0.2265469062 | D140: -1.289683729 | E140: 4.414096916 | F140: -0.2921738587 | G140: -3.85102576 | H140: 19.65744493 | I140: -0.1959067301
C141: -0.2245508982 | D141: -1.297370407 | E141: 4.453333333 | F141: -0.2913256902 | G141: -3.885410373 | H141: 20.01004484 | I141: -0.1941729968
C142: -0.2225548902 | D142: -1.305125717 | E142: 4.493273543 | F142: -0.2904621107 | G142: -3.920414542 | H142: 20.3722176 | I142: -0.1924392631
C143: -0.2205588822 | D143: -1.312950896 | E143: 4.533936652 | F143: -0.289582982 | G143: -3.956055163 | H143: 20.7443129 | I143: -0.1907055289
C144: -0.2185628743 | D144: -1.320847213 | E144: 4.575342466 | F144: -0.2886881634 | G144: -3.992349754 | H144: 21.12669655 | I144: -0.1889717943
C145: -0.2165668663 | D145: -1.328815975 | E145: 4.617511521 | F145: -0.2877775116 | G145: -4.029316481 | H145: 21.51975137 | I145: -0.1872380592
C146: -0.2145708583 | D146: -1.336858523 | E146: 4.660465116 | F146: -0.2868508807 | G146: -4.06697419 | H146: 21.92387815 | I146: -0.1855043237
C147: -0.2125748503 | D147: -1.344976236 | E147: 4.704225352 | F147: -0.2859081221 | G147: -4.105342437 | H147: 22.3394967 | I147: -0.1837705877
C148: -0.2105788423 | D148: -1.353170532 | E148: 4.748815166 | F148: -0.2849490842 | G148: -4.144441525 | H148: 22.76704687 | I148: -0.1820368513
C149: -0.2085828343 | D149: -1.361442871 | E149: 4.794258373 | F149: -0.2839736128 | G149: -4.184292535 | H149: 23.20698981 | I149: -0.1803031143
C150: -0.2065868263 | D150: -1.369794752 | E150: 4.84057971 | F150: -0.2829815506 | G150: -4.22491737 | H150: 23.65980912 | I150: -0.1785693768
C151: -0.2045908184 | D151: -1.378227721 | E151: 4.887804878 | F151: -0.2819727373 | G151: -4.266338789 | H151: 24.12601226 | I151: -0.1768356388
C152: -0.2025948104 | D152: -1.386743367 | E152: 4.935960591 | F152: -0.2809470095 | G152: -4.308580454 | H152: 24.6061319 | I152: -0.1751019002
C153: -0.2005988024 | D153: -1.395343328 | E153: 4.985074627 | F153: -0.2799042006 | G153: -4.351666973 | H153: 25.10072752 | I153: -0.1733681611
C154: -0.1986027944 | D154: -1.40402929 | E154: 5.035175879 | F154: -0.2788441405 | G154: -4.395623949 | H154: 25.61038696 | I154: -0.1716344214
C155: -0.1966067864 | D155: -1.412802991 | E155: 5.086294416 | F155: -0.2777666559 | G155: -4.440478029 | H155: 26.13572823 | I155: -0.1699006811
C156: -0.1946107784 | D156: -1.42166622 | E156: 5.138461538 | F156: -0.2766715698 | G156: -4.486256959 | H156: 26.67740136 | I156: -0.1681669402
C157: -0.1926147705 | D157: -1.430620825 | E157: 5.191709845 | F157: -0.2755587018 | G157: -4.532989644 | H157: 27.23609039 | I157: -0.1664331987
C158: -0.1906187625 | D158: -1.439668709 | E158: 5.246073298 | F158: -0.2744278676 | G158: -4.580706201 | H158: 27.81251558 | I158: -0.1646994565
C159: -0.1886227545 | D159: -1.448811835 | E159: 5.301587302 | F159: -0.273278879 | G159: -4.629438032 | H159: 28.4074357 | I159: -0.1629657136
C160: -0.1866267465 | D160: -1.45805223 | E160: 5.35828877 | F160: -0.2721115439 | G160: -4.67921789 | H160: 29.02165053 | I160: -0.1612319701
C161: -0.1846307385 | D161: -1.467391986 | E161: 5.416216216 | F161: -0.2709256661 | G161: -4.73007995 | H161: 29.65600354 | I161: -0.1594982258
C162: -0.1826347305 | D162: -1.476833264 | E162: 5.475409836 | F162: -0.2697210451 | G162: -4.782059891 | H162: 30.31138484 | I162: -0.1577644808
C163: -0.1806387226 | D163: -1.486378293 | E163: 5.535911602 | F163: -0.2684974761 | G163: -4.835194977 | H163: 30.98873422 | I163: -0.156030735
C164: -0.1786427146 | D164: -1.496029381 | E164: 5.597765363 | F164: -0.2672547497 | G164: -4.889524147 | H164: 31.6890446 | I164: -0.1542969884
C165: -0.1766467066 | D165: -1.50578891 | E165: 5.661016949 | F165: -0.2659926518 | G165: -4.945088111 | H165: 32.41336562 | I165: -0.152563241
C166: -0.1746506986 | D166: -1.515659346 | E166: 5.725714286 | F166: -0.2647109636 | G166: -5.001929449 | H166: 33.1628076 | I166: -0.1508294928
C167: -0.1726546906 | D167: -1.525643237 | E167: 5.791907514 | F167: -0.263409461 | G167: -5.060092722 | H167: 33.93854579 | I167: -0.1490957436
C168: -0.1706586826 | D168: -1.535743222 | E168: 5.859649123 | F168: -0.2620879152 | G168: -5.11962459 | H168: 34.74182498 | I168: -0.1473619936
C169: -0.1686626747 | D169: -1.545962034 | E169: 5.928994083 | F169: -0.2607460915 | G169: -5.180573933 | H169: 35.5739645 | I169: -0.1456282426
C170: -0.1666666667 | D170: -1.556302501 | E170: 6 | F170: -0.2593837501 | G170: -5.242991988 | H170: 36.43636364 | I170: -0.1438944907
C171: -0.1646706587 | D171: -1.566767555 | E171: 6.072727273 | F171: -0.2580006452 | G171: -5.30693249 | H171: 37.33050753 | I171: -0.1421607377
C172: -0.1626746507 | D172: -1.577360234 | E172: 6.147239264 | F172: -0.2565965251 | G172: -5.372451829 | H172: 38.25797355 | I172: -0.1404269837
C173: -0.1606786427 | D173: -1.588083691 | E173: 6.223602484 | F173: -0.255171132 | G173: -5.439609215 | H173: 39.2204383 | I173: -0.1386932286
C174: -0.1586826347 | D174: -1.598941194 | E174: 6.301886792 | F174: -0.2537242015 | G174: -5.508466855 | H174: 40.21968513 | I174: -0.1369594724
C175: -0.1566866267 | D175: -1.609936138 | E175: 6.382165605 | F175: -0.2522554628 | G175: -5.579090147 | H175: 41.25761249 | I175: -0.135225715
C176: -0.1546906188 | D176: -1.621072047 | E176: 6.464516129 | F176: -0.250764638 | G176: -5.651547887 | H176: 42.33624288 | I176: -0.1334919564
C177: -0.1526946108 | D177: -1.632352581 | E177: 6.549019608 | F177: -0.2492514421 | G177: -5.725912491 | H177: 43.45773276 | I177: -0.1317581965
C178: -0.1506986028 | D178: -1.643781548 | E178: 6.635761589 | F178: -0.2477155827 | G178: -5.802260239 | H178: 44.62438331 | I178: -0.1300244353
C179: -0.1487025948 | D179: -1.655362906 | E179: 6.724832215 | F179: -0.2461567595 | G179: -5.880671531 | H179: 45.83865224 | I179: -0.1282906727
C180: -0.1467065868 | D180: -1.667100774 | E180: 6.816326531 | F180: -0.2445746644 | G180: -5.961231178 | H180: 47.10316678 | I180: -0.1265569087
C181: -0.1447105788 | D181: -1.678999439 | E181: 6.910344828 | F181: -0.2429689806 | G181: -6.044028699 | H181: 48.42073788 | I181: -0.1248231432
C182: -0.1427145709 | D182: -1.691063368 | E182: 7.006993007 | F182: -0.2413393829 | G182: -6.129158659 | H182: 49.79437584 | I182: -0.1230893762
C183: -0.1407185629 | D183: -1.703297218 | E183: 7.106382979 | F183: -0.2396855366 | G183: -6.216721026 | H183: 51.22730752 | I183: -0.1213556075
C184: -0.1387225549 | D184: -1.715705843 | E184: 7.208633094 | F184: -0.2380070979 | G184: -6.306821564 | H184: 52.72299533 | I184: -0.1196218372
C185: -0.1367265469 | D185: -1.728294309 | E185: 7.313868613 | F185: -0.2363037129 | G185: -6.399572259 | H185: 54.28515815 | I185: -0.1178880651
C186: -0.1347305389 | D186: -1.741067906 | E186: 7.422222222 | F186: -0.2345750173 | G186: -6.495091783 | H186: 55.91779449 | I186: -0.1161542912
C187: -0.1327345309 | D187: -1.754032161 | E187: 7.533834586 | F187: -0.2328206362 | G187: -6.593506002 | H187: 57.62520806 | I187: -0.1144205153
C188: -0.130738523 | D188: -1.767192852 | E188: 7.648854962 | F188: -0.2310401832 | G188: -6.694948527 | H188: 59.41203622 | I188: -0.1126867375
C189: -0.128742515 | D189: -1.780556022 | E189: 7.76744186 | F189: -0.2292332604 | G189: -6.799561322 | H189: 61.28328145 | I189: -0.1109529575
C190: -0.126746507 | D190: -1.794128001 | E190: 7.88976378 | F190: -0.2273994572 | G190: -6.907495364 | H190: 63.24434646 | I190: -0.1092191753
C191: -0.124750499 | D191: -1.807915417 | E191: 8.016 | F191: -0.2255383504 | G191: -7.018911372 | H191: 65.30107317 | I191: -0.1074853908
C192: -0.122754491 | D192: -1.82192522 | E192: 8.146341463 | F192: -0.2236495031 | G192: -7.133980605 | H192: 67.45978633 | I192: -0.1057516039
C193: -0.120758483 | D193: -1.836164702 | E193: 8.280991736 | F193: -0.2217324641 | G193: -7.252885742 | H193: 69.72734218 | I193: -0.1040178145
C194: -0.118762475 | D194: =LOG(x^2) -> -1.85064152 | E194: =1/ABS(x) -> 8.420168067 | F194: -0.2197867674 | G194: -7.375821846 | H194: 72.11118293 | I194: -0.1022840223
C195: -0.1167664671 | D195: -1.86536372 | E195: 8.564102564 | F195: -0.2178119313 | G195: =(D196-D195)/dx -> -7.502997435 | H195: =(E196-E195)/dx -> 74.61939799 | I195: -0.1005502274
C196: =C195+dx -> -0.1147704591 | D196: -1.880339762 | E196: 8.713043478 | F196: =D196/E196 -> -0.2158074578 | G196: -7.634635664 | H196: 77.26079261 | I196: =G196/H196 -> -0.09881642947
C197: -0.1127744511 | D197: -1.895578556 | E197: 8.867256637 | F197: -0.2137728312 | G197: -7.770975626 | H197: 80.04496532 | I197: -0.09708262843
C198: -0.1107784431 | D198: -1.911089485 | E198: 9.027027027 | F198: -0.2117075179 | G198: -7.912273808 | H198: 82.98239524 | I198: -0.09534882411
C199: -0.1087824351 | D199: -1.926882447 | E199: 9.19266055 | F199: -0.2096109648 | G199: -8.058805696 | H199: 86.08454086 | I199: -0.09361501631
C200: -0.1067864271 | D200: -1.942967888 | E200: 9.364485981 | F200: -0.2074825988 | G200: -8.210867573 | H200: 89.36395194 | I200: -0.09188120483
... 304 more rows

Sheet Defining Function
A1: Defining a Function in Excel
A3: Computers have very specific rules you must follow when defining a function. If you don't, the program will either not work at all or will work incorrectly.
A5: 1. The Variable used should be the one named in the instruction, usually x, though sometimes y, t, Q (for an angle theta),
A6: or even x and y (for a function of two variables).
A8: 2. Order of Operations: There five arithmetic operations, addition (+), subtraction (-), multiplication (*), division (/), and exponentiation or power (^). When computers see any of these operation symbols, they perform the indicated steps in a very particular order. First, the power is done. Second, products and quotients of adjacent terms is done. Third, and last, sums and differences of adjacent terms are done. So, in 10*x^3 + 5*x – 7, say with x = 2, the first pass only calculates 2^3 and ignores the multiplications and the sums and differences to calculate 2^3 = 8. The second pass looks at 10*8 + 5*2 – 7 and only does the multiplications, so it produces 80 + 10 - 7. The third pass looks at the +’s and –‘s to produce 80 + 10 – 7 = 83.
A10: 3. Parentheses If you need an operation involving more than two adjacent terms, as in Ö4^3 + 6^2, the computer would take the square root of 4 to produce 2^3 + 6^2; it would then cube the 2 and square the 6 to produce 8 + 36; and finally it would add the 8 and the 36 to get 44. If you actually wanted the square root of the entire expression, you would need to use parentheses, as in Ö(4^3 + 6^2) to tell the computer to do all the operations inside the parentheses before taking the square root. Therefore, it would calculate (4^3 + 6^2) = 64 + 36 = 100 and then take the square root of Ö100 = 10.
A12: 4. Built-In Functions Computer programs have built-in functions for most common algebraic functions. In Excel, the square root function is denoted by SQRT(…), so SQRT(100) = 10. Alternatively, you could enter it as 100^.5 or 100^(1/2); notice that parentheses are needed to have the ½ done first. The common trig functions are SIN (…), COS (…), and TAN (…), where the arguments are automatically interpreted as being in radians, not degrees. The logarithm to the base 10 is represented by LOG (…) and the logarithm with the base e, known as the natural logarithm, is LN (…). The corresponding exponential function with base e is EXP (x). If x is the variable, then each of these would be SQRT (x), SIN (x), COS (x), TAN (x), LOG (x) (for log with base 10 ), LN (x) (for log with base e ), and EXP (x).

Sheet Sheet3
